fUSD/lending_fUSD_20240404
["ID","MTS","AMOUNT","RATE_DAILY","PERIOD"]
[321503537,1712254240373,-1000.0,0.00037879,2]
[321503538,1712254240383,-1000.0,0.00037879,2]
[321503539,1712254240392,-1000.0,0.00037879,2]
[321503540,1712254240401,-682.05888116,0.00037879,2]
[321503541,1712254240410,-151.0,0.0003788,7]
[321503542,1712254240419,-151.0,0.0003788,7]
[321503543,1712254240428,-151.0,0.0003788,7]
[321503545,1712254240437,-865188.14664442,0.0003788,2]
[321503585,1712254241044,-596.04655466,0.0003788,2]
[321503586,1712254241058,-1370.04995563,0.0003788,2]
[321503587,1712254241085,-380.04,0.0003788,2]
[321503588,1712254241097,-20746.4,0.0003788,2]
[321503589,1712254241117,-385.46466382,0.0003788,2]
[321503590,1712254241128,-15995.95121054,0.0003788,2]
[321503591,1712254241150,-412.5504,0.0003788,2]
[321503592,1712254241161,-252.744,0.0003788,2]
[321503593,1712254241184,-888.95229078,0.0003788,2]
[321503594,1712254241211,-1371.09216847,0.0003788,2]
[321503595,1712254241582,-3183.80000012,0.0003788,2]
[321503596,1712254241637,-1343.585,0.0003788,2]
[321503597,1712254242101,-1006.632,0.0003788,2]
[321503598,1712254242174,-976.68977929,0.0003788,2]
[321503599,1712254242186,-1063.96311532,0.0003788,2]
[321503600,1712254242231,-262781.72316628,0.0003788,2]
[321503620,1712254242906,-138620.6341268,0.0003788,2]
[321503621,1712254242918,-1382.0,0.0003788,2]
[321503622,1712254242941,-3436.30455818,0.0003788,2]
[321503623,1712254243051,-1817.26979865,0.00037879,4]
[321503624,1712254243062,-275.78131727,0.00037879,4]
[321503625,1712254243072,-3218.83536618,0.0003788,2]
[321503626,1712254243083,-31129.39526795,0.0003788,2]
[321503627,1712254243169,-840.83871945,0.0003788,2]
[321503628,1712254243343,-500.0,0.000248,2]
[321503629,1712254243353,-406.90581278,0.0003788,2]
[321503673,1712254246012,-400.0,0.00036196,2]
[321503674,1712254246022,-13.31228061,0.00037879,4]
[321503675,1712254246072,-7305.27274555,0.00037879,4]
[321503676,1712254246082,-10314.13489155,0.0003788,2]
[321503711,1712254246785,-107099.84980828,0.0003788,2]
[321503713,1712254246797,-22180.66707589,0.0003788,2]
[321503716,1712254246818,-42935.88986377,0.0003788,2]
[321503719,1712254246829,-325.10545298,0.0003788,2]
[321503720,1712254246857,-637.11955799,0.0003788,2]
[321503721,1712254246875,-1590.97343813,0.0003788,2]
[321503722,1712254246892,-8653.98690808,0.0003788,2]
[321503734,1712254536483,1651.8378008,0.00022915,2]
[321503735,1712254632185,9641.20606444,0.00020993,5]
[321503737,1712254821672,-782.71816712,0.00023074,2]
[321503738,1712254821702,-669.94916933,0.00023075,2]
[321503739,1712254821732,-2347.75098996,0.00023075,2]
[321503740,1712254821761,-404.3815207,0.00023075,2]
[321503741,1712254821789,-155.0,0.00023075,2]
[321503742,1712254821817,-407.1301357,0.00023076,2]
[321503743,1712254821846,-312.4020961,0.00023076,2]
[321503744,1712254821874,-778.88911183,0.00023076,2]
[321503745,1712254821901,-155.0,0.00023077,2]
[321503746,1712254821929,-155.0,0.00023078,2]
[321503747,1712254821958,-4309.13332723,0.00023078,2]
[321503748,1712254821988,-857.17181074,0.00023079,2]
[321503749,1712254822017,-645.43915514,0.00023079,2]
[321503750,1712254822044,-155.0,0.0002308,2]
[321503751,1712254822981,167.0,0.00022778,2]
[321503752,1712254848097,371.93339651,0.00022858,2]
[321503764,1712254938163,1100.24,0.00020991,2]
[321503765,1712254950427,1137.24728469,0.00022858,2]
[321503766,1712254953905,1220.68402511,0.00022858,2]
[321503768,1712255006641,2532.51458462,0.00017144,2]
[321503769,1712255028001,211.61,0.00022726,2]
[321503770,1712255033881,1365.08825627,0.00022858,2]
[321503771,1712255038861,600.0,0.00022858,2]
[321503772,1712255044475,1339.36288439,0.00022858,2]
[321503773,1712255051980,287.28645962,0.00022858,2]
[321503774,1712255053898,528.34255295,0.00022858,2]
[321503775,1712255056834,750.0,0.00022858,2]
[321503776,1712255066474,-404.3815207,0.00023082,2]
[321503777,1712255066496,-778.88911183,0.00023083,2]
[321503778,1712255066518,-150.0,0.00023083,2]
[321503779,1712255066541,-619.85903412,0.00023084,2]
[321503780,1712255066563,-4309.13332723,0.00023084,2]
[321503781,1712255066585,-1804.49096305,0.00023089,2]
[321503782,1712255066608,-657.99207118,0.00023092,2]
[321503783,1712255066632,-296.92163089,0.00023093,2]
[321503784,1712255069945,287.28645962,0.00022858,2]
[321503785,1712255091054,-2035.48,0.00023125,2]
[321503786,1712255091080,-200.0,0.00023151,2]
[321503787,1712255091103,-276.9,0.00023164,2]
[321503788,1712255091127,-549.71420876,0.00023199,2]
[321503789,1712255097298,5966.43861237,0.00022858,2]
[321503790,1712255097326,9370.62497162,0.00022858,2]
[321503791,1712255097833,155.68,0.00027185,120]
[321503792,1712255098189,155.68,0.00031069,120]
[321503793,1712255103625,322.46375696,0.00022858,2]
[321503794,1712255103895,1365.83579776,0.00022858,2]
[321503795,1712255104559,-188.28579124,0.00023199,2]
[321503796,1712255104582,-549.71420876,0.000232,2]
[321503797,1712255104606,-1100.24,0.00023255,2]
[321503798,1712255104632,-155.68,0.00023302,2]
[321503799,1712255104655,-472.63292585,0.00023324,2]
[321503800,1712255104676,-174.05766826,0.00023324,2]
[321503801,1712255104699,-1251.86838128,0.00023324,2]
[321503802,1712255104721,-1940.988958,0.00023325,2]
[321503803,1712255104743,-156.62952372,0.00023326,2]
[321503804,1712255104767,-404.25127159,0.00023326,2]
[321503805,1712255104789,-908.72409788,0.00023326,2]
[321503806,1712255104812,-188.69443163,0.00023326,2]
[321503807,1712255104834,-318.57381182,0.00023326,2]
[321503808,1712255104857,-593.02240699,0.00023326,2]
[321503809,1712255104879,-883.83020365,0.00023326,2]
[321503810,1712255104902,-312.22591379,0.00023326,2]
[321503811,1712255104926,-156.8347077,0.00023326,2]
[321503812,1712255104948,-158.70106662,0.00023326,2]
[321503813,1712255104969,-166.94364196,0.00023326,2]
[321503814,1712255104991,-193.57746094,0.00023326,2]
[321503815,1712255105014,-1243.13849957,0.00023326,2]
[321503816,1712255105038,-778.88911183,0.00023326,2]
[321503817,1712255105061,-552.75595454,0.00023326,2]
[321503818,1712255105085,-266.40935964,0.00023326,2]
[321503819,1712255105108,-1140.32707256,0.00023327,2]
[321503820,1712255105132,-743.00353018,0.00023328,2]
[321503821,1712255113127,1200.0,0.00022858,2]
[321503822,1712255113944,287.44117018,0.00022858,2]
[321503823,1712255114275,1467.25162719,0.00022858,2]
[321503824,1712255170742,1467.25162719,0.00022858,2]
[321503825,1712255172384,1366.40848946,0.00022858,2]
[321503826,1712255176453,287.56551453,0.00022858,2]
[321503827,1712255184735,1606.95692582,0.00022858,2]
[321503828,1712255192396,1366.40848946,0.00022858,2]
[321503829,1712255194450,169.19238171,0.00022858,2]
[321503830,1712255198641,184.37,0.00018626,2]
[321503831,1712255210394,1364.69041436,0.00022858,2]
[321503832,1712255248300,23900.0,0.00022977,2]
[321503880,1712255432720,-215.44,0.00023041,2]
[321503881,1712255432730,-282.1782915,0.00023227,2]
[321503882,1712255432739,-157.72910052,0.00023227,2]
[321503883,1712255432748,-34.11865556,0.00023326,2]
[321503884,1712255432777,-465.88134444,0.00023326,2]
[321503885,1712255432787,-552.05951842,0.00023327,2]
[321503886,1712255432797,-30452.36373422,0.00023328,2]
[321503887,1712255432809,-6225.89156695,0.0002333,2]
[321503888,1712255432837,-7211.0,0.0002333,2]
[321503889,1712255432894,-5924.83625148,0.0002333,2]
[321503890,1712255432904,-16358.94,0.00023337,2]
[321503891,1712255432914,-1103.6461,0.00023448,2]
[321503892,1712255432923,-168.98,0.00023463,2]
[321503893,1712255432933,-9999.99,0.00023463,2]
[321503894,1712255432943,-157.31,0.0002356,2]
[321503895,1712255432952,-11006.07,0.0002356,2]
[321503896,1712255432963,-150.99,0.0002356,2]
[321503897,1712255432973,-157.72910052,0.00023675,2]
[321503898,1712255432983,-157.31,0.00023683,2]
[321503899,1712255432992,-499.99,0.00023683,2]
[321503900,1712255433002,-157.31,0.00023806,2]
[321503901,1712255433011,-165.54,0.00023874,2]
[321503902,1712255433021,-300.0,0.000239,8]
[321503904,1712255433031,-500.0,0.00023922,2]
[321503906,1712255433041,-488.81362363,0.00023922,2]
[321503908,1712255433052,-500.0,0.00023922,2]
[321503910,1712255433062,-500.0,0.00023922,2]
[321503912,1712255433071,-588.36341202,0.00023922,2]
[321503914,1712255433080,-769.7967,0.00023923,2]
[321503916,1712255433089,-348.8882,0.00023923,2]
[321503918,1712255433099,-98060.2421,0.00023923,2]
[321503920,1712255433109,-157.31,0.00023928,2]
[321503922,1712255433119,-165.54,0.00023934,2]
[321503932,1712255433205,-165.54,0.00023994,2]
[321503934,1712255433216,-224.31614173,0.00024,2]
[321503936,1712255433225,-391.88,0.00024013,3]
[321503938,1712255433235,-175.5,0.00024013,2]
[321503940,1712255433245,-152825.00917062,0.00024023,2]
[321503962,1712255438017,-79288.90592938,0.00024023,2]
[321503964,1712255438026,-157.31,0.00024051,2]
[321503966,1712255438036,-599.73693163,0.00024121,2]
[321503967,1712255438046,-1216.01054914,0.00024121,2]
[321503969,1712255438059,-12613.16997636,0.00024121,2]
[321503971,1712255438069,-781.90138344,0.00024121,2]
[321503973,1712255438080,-277.37815344,0.00024121,2]
[321503974,1712255438090,-260.68500252,0.00024121,2]
[321503976,1712255438100,-273.75186249,0.00024122,2]
[321503978,1712255438111,-2692.94186695,0.00024122,2]
[321503979,1712255438120,-157.72910052,0.00024123,2]
[321503981,1712255438130,-500.0,0.00024123,2]
[321503983,1712255438140,-1000.0,0.00024123,2]
[321503985,1712255438150,-679.2389,0.00024123,2]
[321503986,1712255438161,-1421.4871,0.00024123,2]
[321503988,1712255438172,-2847.438,0.00024123,2]
[321503990,1712255438183,-29878.783,0.00024123,2]
[321503992,1712255438194,-157.31,0.00024174,2]
[321503994,1712255438204,-281.38732022,0.00024213,2]
[321503995,1712255438219,-219.08902399,0.00024221,2]
[321503997,1712255438230,-245000.0,0.00024223,2]
[321503998,1712255438241,-37710.1144,0.00024223,2]
[321503999,1712255438253,-100000.0,0.00024223,2]
[321504000,1712255438264,-157.31,0.00024297,2]
[321504001,1712255438275,-157.31,0.0002442,2]
[321504002,1712255438286,-157.31,0.00024542,2]
[321504003,1712255438300,-1000.0,0.00024601,2]
[321504004,1712255438323,-157.31,0.00024665,2]
[321504005,1712255438334,-157.31,0.00024788,2]
[321504006,1712255438348,-20679.72882399,0.0002489,2]
[321504007,1712255438359,-1000.0,0.00024999,5]
[321504008,1712255438370,-1904.5752075,0.00025,2]
[321504009,1712255438383,-155.0,0.00025,2]
[321504010,1712255438394,-155.0,0.00025,2]
[321504011,1712255438405,-187.75884954,0.00025,2]
[321504012,1712255438415,-169.63,0.00025107,2]
[321504013,1712255438425,-2035.48,0.00025865,2]
[321504014,1712255438436,-168.98,0.00027335,2]
[321504015,1712255438445,-250.0,0.00027397,2]
[321504016,1712255438455,-1000.0,0.00027677,2]
[321504017,1712255438464,-169.63,0.00027771,2]
[321504018,1712255438473,-2035.48,0.00028605,2]
[321504019,1712255438482,-926.95519965,0.00028794,4]
[321504020,1712255438491,-504.2944,0.0002999,2]
[321504021,1712255438500,-954.3558244,0.0003,4]
[321504022,1712255438510,-3206.28076084,0.0003,2]
[321504023,1712255438522,-606.74427312,0.0003,4]
[321504024,1712255438532,-8978.73687988,0.0003,4]
[321504025,1712255438542,-405.14841286,0.0003,4]
[321504027,1712255438551,-169.63,0.00030435,2]
[321504028,1712255438567,-1000.0,0.00030752,2]
[321504029,1712255438577,-1600.45488383,0.00031069,4]
[321504030,1712255438587,-926.95519965,0.00031215,5]
[321504031,1712255438596,-180.0,0.00031342,2]
[321504032,1712255438605,-151.0,0.00031984,30]
[321504034,1712255438615,-236.96267277,0.00032,4]
[321504036,1712255438624,-335.84,0.00032146,2]
[321504038,1712255438634,-215.44,0.00032257,2]
[321504040,1712255438643,-1897.0,0.00032603,2]
[321504042,1712255438652,-1058.79,0.00032603,2]
[321504044,1712255438661,-151.0,0.00032637,7]
[321504045,1712255438670,-1000.0,0.00032876,2]
[321504046,1712255438680,-1000.0,0.00032876,2]
[321504047,1712255438688,-1000.0,0.00032876,2]
[321504048,1712255438697,-1000.0,0.00032876,2]
[321504049,1712255438707,-1000.0,0.00032876,2]
[321504050,1712255438716,-1000.0,0.00032876,2]
[321504051,1712255438725,-682.05888116,0.00032876,2]
[321504052,1712255438735,-156.25,0.00032877,2]
[321504053,1712255438744,-156.25,0.00032877,2]
[321504054,1712255438754,-152.58,0.00032877,2]
[321504055,1712255438764,-3207.16,0.00032877,2]
[321504056,1712255438773,-1164.0,0.000329,2]
[321504057,1712255438784,-151.0,0.00033303,4]
[321504058,1712255438796,-926.95519965,0.00033636,6]
[321504059,1712255438809,-1000.0,0.00033827,2]
[321504060,1712255438818,-151.0,0.00033982,2]
[321504061,1712255438827,-167.0,0.00034167,2]
[321504062,1712255438837,-152.58,0.00034371,2]
[321504063,1712255438847,-600.0,0.000349,12]
[321504064,1712255438856,-184.84070755,0.000349,7]
[321504065,1712255438865,-153.66301073,0.000349,2]
[321504066,1712255438874,-150.0,0.00034923,2]
[321504067,1712255438884,-155.68,0.00034953,120]
[321504068,1712255438894,-1281.5331215,0.00035,4]
[321504069,1712255438903,-1494.92843562,0.00035,2]
[321504070,1712255438912,-1494.92843562,0.00035,2]
[321504071,1712255439065,-1494.92843562,0.00035,2]
[321504072,1712255439075,-1494.92843562,0.00035,2]
[321504073,1712255439086,-1494.92843562,0.00035,2]
[321504074,1712255439095,-1494.92843562,0.00035,2]
[321504075,1712255439105,-1494.92843562,0.00035,2]
[321504076,1712255439115,-1494.92843562,0.00035,2]
[321504077,1712255439125,-1494.92843562,0.00035,2]
[321504078,1712255439135,-1494.92843562,0.00035,2]
[321504079,1712255439146,-1494.92843562,0.00035,2]
[321504080,1712255439155,-1494.92843562,0.00035,2]
[321504081,1712255439166,-1494.92843562,0.00035,2]
[321504082,1712255439175,-1494.92843562,0.00035,2]
[321504083,1712255439184,-1494.92843562,0.00035,2]
[321504084,1712255439193,-1494.92843562,0.00035,2]
[321504085,1712255439203,-1494.92843562,0.00035,2]
[321504086,1712255439212,-1494.92843562,0.00035,2]
[321504087,1712255439222,-1494.92843562,0.00035,2]
[321504088,1712255439231,-1494.92843562,0.00035,2]
[321504089,1712255439241,-1494.92843562,0.00035,2]
[321504090,1712255439250,-1494.92843562,0.00035,2]
[321504091,1712255439260,-1494.92843562,0.00035,2]
[321504092,1712255439270,-1494.92843562,0.00035,2]
[321504093,1712255439280,-1494.92843562,0.00035,2]
[321504094,1712255439290,-1494.92843562,0.00035,2]
[321504095,1712255439299,-1494.92843562,0.00035,2]
[321504096,1712255439313,-1494.92843562,0.00035,2]
[321504097,1712255439326,-1494.92843562,0.00035,2]
[321504098,1712255439336,-1494.92843562,0.00035,2]
[321504099,1712255439346,-1494.92843562,0.00035,2]
[321504100,1712255439355,-1494.92843562,0.00035,2]
[321504101,1712255439365,-1494.92843562,0.00035,2]
[321504102,1712255439374,-1494.92843562,0.00035,2]
[321504103,1712255439384,-1494.92843562,0.00035,2]
[321504104,1712255439394,-1494.92843562,0.00035,2]
[321504105,1712255439405,-1494.92843562,0.00035,2]
[321504106,1712255439415,-1494.92843562,0.00035,2]
[321504107,1712255439424,-1494.92843562,0.00035,2]
[321504108,1712255439433,-1494.92843562,0.00035,2]
[321504109,1712255439443,-1494.92843562,0.00035,2]
[321504110,1712255439453,-1494.92843562,0.00035,2]
[321504111,1712255439462,-1494.92843562,0.00035,2]
[321504112,1712255439472,-1494.92843562,0.00035,2]
[321504113,1712255439481,-1494.92843562,0.00035,2]
[321504114,1712255439491,-1494.92843562,0.00035,2]
[321504115,1712255439500,-1494.92843562,0.00035,2]
[321504116,1712255439509,-1494.92843562,0.00035,2]
[321504117,1712255439519,-1494.92843562,0.00035,2]
[321504118,1712255439529,-1494.92843562,0.00035,2]
[321504119,1712255439539,-1494.92843562,0.00035,2]
[321504120,1712255439549,-1494.92843562,0.00035,2]
[321504121,1712255439561,-1494.92843562,0.00035,2]
[321504122,1712255439571,-1494.92843562,0.00035,2]
[321504123,1712255439581,-1494.92843562,0.00035,2]
[321504124,1712255439590,-1494.92843562,0.00035,2]
[321504125,1712255439600,-1494.92843562,0.00035,2]
[321504126,1712255439610,-1494.92843562,0.00035,2]
[321504127,1712255439619,-1494.92843562,0.00035,2]
[321504128,1712255439629,-1494.92843562,0.00035,2]
[321504129,1712255439640,-1494.92843562,0.00035,2]
[321504130,1712255439651,-1494.92843562,0.00035,2]
[321504131,1712255439661,-1494.92843562,0.00035,2]
[321504132,1712255439671,-1494.92843562,0.00035,2]
[321504133,1712255439681,-1494.92843562,0.00035,2]
[321504134,1712255439691,-1494.92843562,0.00035,2]
[321504135,1712255439701,-1494.92843562,0.00035,2]
[321504136,1712255439710,-1494.92843562,0.00035,2]
[321504137,1712255439721,-1494.92843562,0.00035,2]
[321504138,1712255439730,-1494.92843562,0.00035,2]
[321504139,1712255439739,-1494.92843562,0.00035,2]
[321504140,1712255439749,-1494.92843562,0.00035,2]
[321504141,1712255439758,-1494.92843562,0.00035,2]
[321504142,1712255439768,-1494.92843562,0.00035,2]
[321504143,1712255439777,-1494.92843562,0.00035,2]
[321504144,1712255439786,-1494.92843562,0.00035,2]
[321504146,1712255439795,-1494.92843562,0.00035,2]
[321504147,1712255439808,-1494.92843562,0.00035,2]
[321504148,1712255439817,-1494.92843562,0.00035,2]
[321504149,1712255439826,-1494.92843562,0.00035,2]
[321504150,1712255439836,-1494.92843562,0.00035,2]
[321504151,1712255439845,-1494.92843562,0.00035,2]
[321504153,1712255439855,-1494.92843562,0.00035,2]
[321504154,1712255439864,-1494.92843562,0.00035,2]
[321504155,1712255439873,-1494.92843562,0.00035,2]
[321504156,1712255439882,-1494.92843562,0.00035,2]
[321504157,1712255439893,-1494.92843562,0.00035,2]
[321504158,1712255439903,-1494.92843562,0.00035,2]
[321504159,1712255439914,-1494.92843562,0.00035,2]
[321504160,1712255439924,-150.0,0.00035056,2]
[321504161,1712255439934,-150.0,0.00035074,2]
[321504162,1712255439944,-150.0,0.0003556,2]
[321504163,1712255439954,-153.66301058,0.00035795,2]
[321504164,1712255439964,-150.0,0.00035848,2]
[321504165,1712255439974,-152.58,0.00035865,2]
[321504166,1712255439983,-150.0,0.00035974,2]
[321504167,1712255439992,-150.0,0.00036014,2]
[321504168,1712255440001,-926.95519965,0.00036057,7]
[321504169,1712255440010,-150.0,0.00036332,2]
[321504170,1712255440020,-150.0,0.00036346,2]
[321504171,1712255440031,-150.0,0.00036427,2]
[321504172,1712255440041,-150.0,0.00036461,2]
[321504173,1712255440051,-153.66301058,0.00036689,2]
[321504174,1712255440063,-150.0,0.00036777,2]
[321504175,1712255440072,-8247.0,0.00036894,2]
[321504176,1712255440081,-150.0,0.00036894,2]
[321504177,1712255440090,-1000.0,0.000369,7]
[321504178,1712255440098,-188.67159562,0.000369,2]
[321504179,1712255440108,-1000.0,0.00036902,2]
[321504180,1712255440117,-1487.1064699,0.00036944,2]
[321504181,1712255440126,-150.0,0.00036975,2]
[321504182,1712255440135,-742.9784816,0.00037,2]
[321504183,1712255440145,-45967.26299381,0.00037,2]
[321504184,1712255440154,-952.5420392,0.00037,2]
[321504185,1712255440163,-250.0,0.00037,3]
[321504186,1712255440173,-1487.1064699,0.00037005,2]
[321504187,1712255440183,-150.0,0.00037006,2]
[321504188,1712255440193,-150.0,0.00037012,2]
[321504189,1712255440202,-4757.8449686,0.00037072,10]
[321504190,1712255440212,-150.0,0.00037268,2]
[321504191,1712255440221,-152.58,0.0003736,2]
[321504192,1712255440231,-150.0,0.00037452,2]
[321504193,1712255440241,-1487.1064699,0.00037453,2]
[321504194,1712255440250,-2082.78848,0.000375,2]
[321504195,1712255440261,-68005.03385278,0.0003751,2]
[321504196,1712255440271,-150.0,0.00037533,2]
[321504197,1712255440280,-150.0,0.00037552,2]
[321504198,1712255440290,-150.0,0.00037555,2]
[321504199,1712255440301,-153.66301058,0.00037584,2]
[321504200,1712255440313,-150.0,0.00037633,2]
[321504201,1712255440324,-150.0,0.00037656,2]
[321504202,1712255440334,-4757.8449685,0.00037656,10]
[321504203,1712255440344,-150.0,0.00037702,2]
[321504204,1712255440353,-150.0,0.0003771,2]
[321504205,1712255440363,-1487.1064699,0.00037733,2]
[321504206,1712255440372,-178.43911629,0.0003774,11]
[321504207,1712255440384,-151.0,0.00037758,2]
[321504208,1712255440394,-250.49088,0.00037758,2]
[321504209,1712255440403,-150.0,0.00037762,2]
[321504210,1712255440414,-192.90805519,0.0003778,11]
[321504211,1712255440423,-3000.0,0.000378,15]
[321504212,1712255440433,-150.0,0.00037802,2]
[321504213,1712255440443,-3000.0,0.0003781,15]
[321504214,1712255440452,-3000.0,0.0003782,15]
[321504215,1712255440461,-3000.0,0.0003783,15]
[321504216,1712255440471,-1500.0,0.00037837,2]
[321504217,1712255440480,-3000.0,0.0003784,15]
[321504218,1712255440489,-2082.78848,0.0003784,2]
[321504219,1712255440499,-150.08969093,0.00037842,2]
[321504220,1712255440509,-3000.0,0.0003785,15]
[321504221,1712255440518,-3000.0,0.0003786,15]
[321504222,1712255440528,-3000.0,0.0003787,16]
[321504223,1712255440538,-9936.5845965,0.00037874,2]
[321504224,1712255440547,-1153.1039186,0.00037874,2]
[321504225,1712255440558,-5003.1536312,0.00037874,2]
[321504226,1712255440567,-667.44100789,0.00037877,4]
[321504227,1712255440576,-157.59590645,0.00037877,4]
[321504228,1712255440587,-1110.14665705,0.00037878,4]
[321504229,1712255440596,-500.0,0.00037878,2]
[321504230,1712255440606,-223.3913158,0.00037878,4]
[321504231,1712255440615,-199.4721357,0.00037878,4]
[321504232,1712255440626,-155.49479633,0.00037878,4]
[321504233,1712255440636,-362.99759205,0.00037878,4]
[321504234,1712255440646,-400.0,0.00037878,2]
[321504235,1712255440657,-351.94616853,0.00037878,4]
[321504236,1712255440666,-301.14595778,0.00037878,4]
[321504237,1712255440676,-280.18590992,0.00037878,4]
[321504238,1712255440686,-218.05642744,0.00037878,4]
[321504239,1712255440697,-694.22,0.00037879,4]
[321504240,1712255440706,-88838.28768501,0.0003788,2]
[321504241,1712255440716,-200.0,0.0003788,2]
[321504242,1712255440725,-2000.0,0.0003788,2]
[321504243,1712255440734,-200.0,0.0003788,2]
[321504244,1712255440744,-3000.0,0.0003788,16]
[321504245,1712255440753,-3000.0,0.0003789,16]
[321504246,1712255440763,-150.0,0.00037892,2]
[321504247,1712255440773,-3000.0,0.000379,16]
[321504248,1712255440784,-1000.0,0.000379,7]
[321504249,1712255440794,-3000.0,0.0003791,16]
[321504250,1712255440804,-3000.0,0.0003792,16]
[321504251,1712255440816,-4910.47469,0.0003793,16]
[321504252,1712255440825,-150.0,0.00037969,2]
[321504253,1712255440834,-2292.15,0.00038027,15]
[321504254,1712255440843,-150.0,0.00038029,2]
[321504255,1712255440852,-150.0,0.00038036,2]
[321504256,1712255440861,-150.0,0.00038055,2]
[321504257,1712255440871,-150.0,0.00038066,2]
[321504258,1712255440880,-13691.08444962,0.000381,3]
[321504259,1712255440890,-150.0,0.00038106,2]
[321504260,1712255440900,-150.0,0.0003814,2]
[321504261,1712255440909,-154.32016826,0.00038144,2]
[321504262,1712255440920,-150.0,0.00038151,2]
[321504263,1712255440929,-150.0,0.00038211,2]
[321504264,1712255440938,-4757.8449685,0.00038241,11]
[321504265,1712255440948,-200.0,0.00038259,2]
[321504266,1712255440958,-2000.0,0.00038259,2]
[321504267,1712255440968,-200.0,0.00038259,2]
[321504268,1712255440977,-150.0,0.0003828,2]
[321504269,1712255440988,-150.0,0.00038295,2]
[321504270,1712255440997,-1487.1064699,0.00038298,2]
[321504271,1712255441007,-1500.0,0.00038305,2]
[321504272,1712255441016,-1500.0,0.00038364,2]
[321504273,1712255441026,-150.0,0.0003837,2]
[321504274,1712255441036,-302.0,0.00038393,4]
[321504275,1712255441046,-167.12,0.00038411,2]
[321504276,1712255441059,-150.0,0.00038425,2]
[321504277,1712255441069,-1557.41327629,0.00038451,2]
[321504278,1712255441079,-150.0,0.00038463,2]
[321504279,1712255441089,-2082.78849,0.0003847,2]
[321504280,1712255441099,-150.0,0.00038475,2]
[321504281,1712255441109,-926.95519965,0.00038479,8]
[321504282,1712255441120,-153.66301058,0.00038479,2]
[321504283,1712255441129,-574.0,0.00038484,5]
[321504284,1712255441139,-163.75227082,0.00038495,3]
[321504285,1712255441148,-150.0,0.00038501,2]
[321504286,1712255441157,-150.0,0.00038506,2]
[321504287,1712255441166,-150.0,0.0003853,2]
[321504288,1712255441176,-150.0,0.00038533,2]
[321504289,1712255441186,-1500.0,0.00038536,2]
[321504290,1712255441196,-1487.1064699,0.00038542,2]
[321504291,1712255441206,-1500.0,0.00038557,2]
[321504292,1712255441215,-150.0,0.00038559,2]
[321504293,1712255441225,-155.70600063,0.00038599,4]
[321504294,1712255441234,-150.0,0.00038617,2]
[321504295,1712255441569,-150.0,0.00038627,2]
[321504296,1712255441588,-1500.0,0.00038627,2]
[321504297,1712255441599,-304.54086266,0.00038635,2]
[321504298,1712255441610,-150.0,0.00038636,2]
[321504299,1712255441620,-150.0,0.00038637,2]
[321504300,1712255441630,-150.0,0.0003864,2]
[321504301,1712255441640,-2000.0,0.00038641,2]
[321504302,1712255441650,-200.0,0.00038641,2]
[321504303,1712255441660,-150.0,0.00038642,2]
[321504304,1712255441671,-150.0,0.00038649,2]
[321504305,1712255441681,-150.0,0.00038671,2]
[321504306,1712255441690,-800.0,0.00038677,15]
[321504307,1712255441700,-150.0,0.0003868,2]
[321504308,1712255441709,-150.0,0.00038684,2]
[321504309,1712255441719,-150.0,0.00038696,2]
[321504310,1712255441728,-3326.875111,0.000387,2]
[321504311,1712255441737,-150.0,0.00038705,2]
[321504312,1712255441747,-150.0,0.00038708,2]
[321504313,1712255441756,-150.0,0.00038715,2]
[321504314,1712255441766,-150.0,0.00038716,2]
[321504315,1712255441776,-152.0,0.00038716,3]
[321504316,1712255441791,-150.0,0.00038728,2]